bitfinex/quotes_ETHUSD_20251206
["timestamp","ask_amount","ask_price","bid_price","bid_amount"]
[1765044914665,0.9754,3055.6,3055.4,3.27289389]
[1765044914969,0.4808,3055.5,3055.4,3.27289389]
[1765044915156,0.9754,3055.5,3055.4,8.87482789]
[1765044916868,0.1897,3055.8,3055.4,15.42061567]
[1765044917034,0.1897,3055.8,3055.7,6.26455231]
[1765044917235,0.6705,3055.8,3055.7,6.78055231]
[1765044917532,1.1651,3055.8,3055.7,6.78055231]
[1765044917733,1.1651,3055.8,3055.7,8.18420165]
[1765044918353,1.1651,3055.8,3055.7,5.1922219]
[1765044923067,0.002,3056.0,3055.7,8.46479446]
[1765044923270,0.4747,3055.8,3055.2,0.405504]
[1765044923441,1.31303246,3055.9,3055.7,3.27257256]
[1765044923638,0.4707,3055.8,3055.7,3.27257256]
[1765044923842,0.9454,3055.8,3055.7,3.27257256]
[1765044925278,0.9454,3055.8,3055.3,6.54596282]
[1765044925452,0.4747,3055.4,3055.3,3.99855592]
[1765044925983,0.9454,3055.4,3055.3,3.99855592]
[1765044926167,0.9454,3055.4,3055.3,4.77731893]
[1765044926980,0.9454,3055.4,3055.3,3.27296181]
[1765044927378,0.9454,3055.4,3055.0,6.95214884]
[1765044927561,1.12523246,3055.3,3055.1,2.930027]
[1765044928077,0.4707,3055.2,3055.1,2.930027]
[1765044928285,0.9454,3055.2,3055.1,2.930027]
[1765044929268,0.9454,3055.2,3055.0,6.54664484]
[1765044929467,0.9022,3055.1,3055.0,3.27332242]
[1765044934181,0.9022,3055.1,3054.9,3.27342013]
[1765044934350,0.945,3055.0,3054.6,10.54684729]
[1765044934556,0.4319,3054.9,3054.7,2.05997822]
[1765044934867,0.6521,3054.9,3054.7,2.05997822]
[1765044935191,0.4747,3054.8,3054.7,2.05997822]
[1765044935484,0.9454,3054.8,3054.7,2.05997822]
[1765044936594,0.9454,3054.8,3054.7,6.05921622]
[1765044948297,0.65493246,3055.6,3054.7,9.73836411]
[1765044948593,0.65493246,3055.4,3054.9,6.2631536]
[1765044948797,0.65493246,3055.4,3054.9,6.7791536]
[1765044948995,0.4707,3055.3,3055.0,6.54664484]
[1765044949397,0.4747,3055.1,3055.0,3.27332242]
[1765044949784,0.9454,3055.1,3055.0,3.27332242]
[1765044962711,0.65493246,3055.4,3055.0,6.54664484]
[1765044963418,0.4698,3055.1,3055.0,3.27332242]
[1765044964309,0.9347,3055.1,3055.0,3.27332242]
[1765044965429,0.65493246,3055.8,3055.0,11.31372941]
[1765044965725,1.11983246,3055.5,3055.0,10.24736726]
[1765044966085,0.4649,3055.4,3055.0,10.24736726]
[1765044966893,0.65493246,3055.5,3055.0,10.24736726]
[1765044967079,0.65493246,3055.8,3055.0,10.67476726]
[1765044967412,1.11983246,3055.5,3055.1,12.334081]
[1765044967614,1.11983246,3055.5,3055.2,6.54621628]
[1765044969814,1.11983246,3055.5,3055.1,6.54643054]
[1765044970186,0.4649,3055.4,3055.1,6.54643054]
[1765044973984,0.65493246,3055.8,3055.3,0.4274]
[1765044974186,0.65493246,3055.6,3055.3,0.516]
[1765044974514,1.12473246,3055.4,3055.3,0.516]
[1765044974915,1.58963246,3055.4,3055.3,0.516]
[1765044976695,1.58963246,3055.4,3055.3,3.78900101]
[1765044977823,0.9347,3055.4,3055.3,3.78900101]
[1765044978416,0.4698,3055.4,3055.3,3.78900101]
[1765044980430,0.9642,3055.4,3055.3,3.78900101]
[1765044981331,0.9642,3055.4,3055.2,0.516]
[1765044981530,1.55703246,3055.3,3055.2,3.78910814]
[1765044982304,0.9021,3055.3,3055.2,3.78910814]
[1765044982628,0.4944,3055.5,3055.2,13.32793278]
[1765044982834,0.4944,3055.5,3055.2,14.98804735]
[1765044983925,0.4944,3055.7,3055.2,14.98804735]
[1765044984826,0.65493246,3055.6,3055.2,14.98804735]
[1765044985335,1.14933246,3055.6,3055.2,14.98804735]
[1765044986637,0.65493246,3055.6,3055.2,14.98804735]
[1765044986840,0.65493246,3055.6,3055.2,15.41544735]
[1765044987035,0.65493246,3055.8,3055.4,6.2657165]
[1765044987410,1.14933246,3055.8,3055.4,6.2657165]
[1765044987621,0.65493246,3055.8,3055.4,6.2657165]
[1765044987939,0.4944,3055.7,3055.4,6.2657165]
[1765044990412,0.4944,3055.7,3055.5,3.27278677]
[1765044992041,0.4848,3055.6,3055.5,3.27278677]
[1765044994820,0.9792,3055.6,3055.5,3.27278677]
[1765045002372,0.9792,3055.6,3054.8,0.9792]
[1765045002373,1.11203224,3055.6,3054.8,0.9792]
[1765045002561,0.6743,3054.9,3054.8,3.78953672]
[1765045002971,1.1687,3054.9,3054.8,3.78953672]
[1765045005780,1.1687,3054.9,3054.8,3.27353672]
[1765045006777,1.1687,3054.9,3054.7,3.27360295]
[1765045009176,0.3908,3054.8,3054.7,3.27360295]
[1765045011595,0.8684,3054.8,3054.6,3.27364846]
[1765045011749,1.11863246,3054.7,3054.6,3.27364846]
[1765045012761,0.4637,3054.7,3054.5,3.27375514]
[1765045012966,0.4637,3054.7,3054.5,9.53947164]
[1765045013696,0.4282,3054.6,3054.5,9.53947164]
[1765045015695,0.4282,3054.6,3054.5,3.27375514]
[1765045015901,0.9058,3054.6,3054.5,3.27375514]
[1765045018802,0.9058,3054.6,3054.2,0.001]
[1765045019004,1.15233246,3054.3,3054.2,0.001]
[1765045021909,0.4974,3054.3,3054.2,0.001]
[1765045024781,1.10823246,3054.5,3054.2,0.001]
[1765045026111,1.10823246,3054.5,3054.2,6.54935962]
[1765045026911,1.10823246,3054.5,3054.2,8.23096607]
[1765045026912,0.65493246,3054.5,3054.2,8.23096607]
[1765045027107,0.65493246,3054.5,3054.4,0.4274]
[1765045027314,0.65493246,3054.5,3054.2,6.54935962]
[1765045029085,1.29773246,3054.9,3054.4,0.4274]
[1765045029412,0.4974,3054.3,3054.2,3.27517981]
[1765045030017,0.9507,3054.3,3054.2,3.27517981]
[1765045030620,0.9507,3054.3,3054.2,0.001]
[1765045032248,0.4974,3054.3,3054.2,0.001]
[1765045032606,0.9507,3054.3,3054.2,0.001]
[1765045035210,1.12454647,3054.3,3054.2,0.001]
[1765045038115,0.67124647,3054.3,3054.2,0.001]
[1765045038319,0.4974,3054.3,3054.2,0.001]
[1765045039018,0.9507,3054.3,3054.2,0.001]
[1765045043522,0.65493246,3054.7,3054.2,0.9976]
[1765045043726,0.65493246,3054.7,3054.6,0.4274]
[1765045044920,0.65493246,3054.7,3054.3,0.516]
[1765045045095,0.65493246,3054.7,3054.3,0.9434]
[1765045045295,0.65493246,3054.7,3054.3,1.13768426]
[1765045045825,0.65493246,3054.7,3054.4,6.54793084]
[1765045046024,0.65493246,3054.9,3054.6,0.4274]
[1765045046898,0.65493246,3055.1,3054.8,0.4274]
[1765045047100,0.65493246,3055.1,3055.0,0.4274]
[1765045047414,0.65493246,3055.3,3055.0,0.4274]
[1765045047590,0.65493246,3055.5,3055.3,3.27300101]
[1765045047797,1.14403246,3055.8,3055.4,0.4274]
[1765045047991,0.65493246,3055.6,3055.4,0.4274]
[1765045048612,1.14403246,3055.6,3055.3,6.54600202]
[1765045048925,0.4575,3055.5,3055.3,6.54600202]
[1765045049710,0.4575,3055.5,3055.2,6.54621628]
[1765045050229,1.14403246,3055.6,3055.2,6.54621628]
[1765045050726,0.65493246,3055.6,3055.2,6.97361628]
[1765045051406,0.1874,3055.9,3055.2,6.97361628]
[1765045051407,0.84233246,3055.9,3055.5,0.4274]
[1765045051600,0.65493246,3055.7,3055.5,0.4274]
[1765045051812,0.65493246,3055.9,3055.6,3.27267967]
[1765045052012,0.65493246,3055.9,3055.6,6.97275934]
[1765045052929,0.002,3056.0,3055.8,6.69902495]
[1765045053229,0.002,3056.0,3055.7,0.98238099]
[1765045053405,0.4575,3055.8,3055.6,6.54535934]
[1765045053605,0.4575,3055.8,3055.6,7.2002918]
[1765045054404,0.4019,3055.7,3055.6,3.27267967]
[1765045057636,0.002,3056.0,3055.6,6.97275934]
[1765045057809,0.002,3056.0,3055.7,0.4274]
[1765045058009,0.4911,3056.0,3055.6,7.69407076]
[1765045059039,0.002,3056.0,3055.6,7.69407076]
[1765045059533,1.34313246,3055.9,3055.6,7.69407076]
[1765045059739,0.4575,3055.7,3055.6,3.27267967]
[1765045060335,0.85403246,3055.9,3055.6,3.27267967]
[1765045060505,0.85403246,3055.9,3055.6,3.70007967]
[1765045060710,1.34313246,3055.9,3055.6,6.97275934]
[1765045061115,1.34313246,3055.9,3055.6,3.70007967]
[1765045061116,0.65493246,3055.7,3055.6,3.70007967]
[1765045061413,0.65493246,3055.9,3055.6,6.97275934]
[1765045061937,0.002,3056.0,3055.6,6.97275934]
[1765045062135,0.65493246,3055.9,3055.6,6.97275934]
[1765045062311,0.65493246,3055.7,3055.6,3.70007967]
[1765045064859,1.11243246,3055.7,3055.6,3.27267967]
[1765045065011,1.60153246,3055.7,3055.6,3.27267967]
[1765045065753,1.11243246,3055.7,3055.6,3.27267967]
[1765045066114,0.65493246,3055.7,3055.6,3.27267967]
[1765045067534,0.65493246,3055.7,3055.3,6.54600202]
[1765045067709,0.65493246,3055.7,3055.3,8.67680947]
[1765045068636,1.14403246,3055.9,3055.6,3.70007967]
[1765045068830,0.65493246,3055.9,3055.6,6.97275934]
[1765045070342,0.002,3056.0,3055.6,6.97275934]
[1765045070529,0.002,3056.0,3055.8,0.4274]
[1765045070827,0.002,3056.0,3055.9,3.69975838]
[1765045074127,0.002,3056.0,3055.9,3.27235838]
[1765045074327,0.4926,3056.0,3055.9,3.27235838]
[1765045075854,0.4926,3056.0,3055.7,6.54504138]
[1765045076052,0.002,3056.0,3055.7,8.3707473]
[1765045076968,0.4906,3055.8,3055.7,5.09817474]
[1765045077174,0.4906,3055.8,3055.7,3.27246882]
[1765045077344,0.4906,3055.8,3055.6,3.27264876]
[1765045077345,0.9687,3055.8,3055.6,3.27264876]
[1765045077543,0.65493246,3055.7,3055.6,3.27264876]
[1765045077744,1.52003246,3055.7,3055.3,3.27300101]
[1765045077954,0.65493246,3055.5,3055.4,0.3789001]
[1765045078433,1.14443246,3055.5,3055.4,0.3789001]
[1765045080444,1.14443246,3055.5,3055.4,3.65179399]
[1765045080638,1.62253246,3055.5,3055.4,3.27289389]
[1765045080851,0.9676,3055.5,3054.6,6.69902495]
[1765045081058,1.04303246,3055.3,3054.7,0.516]
[1765045081232,1.04303246,3055.3,3054.8,0.72559411]
[1765045081433,1.13303246,3055.7,3054.9,7.37787753]
[1765045081632,0.65493246,3055.5,3055.0,7.965282]
[1765045081834,0.65493246,3055.7,3055.1,0.516]
[1765045082062,0.65493246,3055.7,3055.4,0.4274]
[1765045082568,1.13303246,3055.7,3055.5,3.27278677]
[1765045082732,0.65493246,3055.7,3055.5,3.27278677]
[1765045083528,0.84703246,3055.9,3055.5,6.54557354]
[1765045083751,0.4906,3055.6,3055.5,3.27278677]
[1765045084142,0.9687,3055.6,3055.5,3.27278677]
[1765045085652,0.9687,3055.6,3055.3,6.54591487]
[1765045085853,0.65493246,3055.5,3055.3,6.54591487]
[1765045086436,0.9687,3055.4,3055.3,3.27291386]
[1765045087243,0.9687,3055.4,3055.2,3.27307153]
[1765045087574,1.52003246,3055.3,3055.2,3.27307153]
[1765045087773,1.52003246,3055.3,3054.9,6.54685914]
[1765045088067,0.65493246,3055.1,3054.9,6.54685914]
[1765045088270,0.4906,3055.0,3054.9,3.27342957]
[1765045088436,0.9687,3055.0,3054.9,3.27342957]
[1765045089256,0.9687,3055.0,3054.8,1.24159411]
[1765045089257,0.9687,3055.0,3054.8,3.27349821]
[1765045089456,1.71213246,3054.9,3054.8,3.27349821]
[1765045089655,1.71213246,3054.9,3054.5,6.54771648]
[1765045089974,0.4906,3054.8,3054.5,7.58149069]
[1765045094280,0.394,3054.6,3054.5,4.30763245]
[1765045095683,0.84703246,3054.9,3054.5,8.00889069]
[1765045095985,1.32513246,3054.9,3054.5,8.00889069]
[1765045098284,1.32513246,3054.9,3054.5,11.28274893]
[1765045098477,1.32513246,3054.9,3054.6,1.17987489]
[1765045099252,0.65493246,3054.9,3054.6,1.17987489]
[1765045099458,0.65493246,3055.3,3054.8,0.4274]
[1765045099664,0.65493246,3055.1,3055.0,0.4274]
[1765045100854,0.65493246,3055.1,3055.0,3.70072242]
[1765045101482,1.57973246,3055.1,3055.0,3.27332242]
[1765045103284,1.57973246,3055.1,3054.9,3.27342957]
[1765045103485,1.12503246,3055.1,3054.9,3.27342957]
[1765045103788,0.65493246,3055.3,3054.9,6.54685914]
[1765045103964,1.10963246,3055.3,3054.9,6.54685914]
[1765045106186,0.65493246,3055.3,3054.9,6.54685914]
[1765045106357,0.4547,3055.2,3054.9,6.54685914]
[1765045106558,0.65493246,3055.1,3054.9,6.54685914]
[1765045107682,0.4701,3055.0,3054.9,3.27342957]
[1765045107854,0.9248,3055.0,3054.9,3.27342957]
[1765045108260,0.65493246,3055.1,3054.9,3.27342957]
[1765045108668,1.30173246,3055.9,3055.1,5.234905]
[1765045108864,1.30173246,3055.9,3055.0,7.12303986]
[1765045108865,0.65493246,3055.9,3055.5,6.26823986]
[1765045109577,1.10963246,3055.9,3055.5,6.26823986]
[1765045109997,0.002,3056.0,3055.8,0.4274]
[1765045110209,0.002,3056.0,3055.6,7.48875934]
[1765045110375,0.002,3056.0,3055.6,8.76434123]
[1765045112578,0.65493246,3055.9,3055.6,8.76434123]
[1765045113910,0.65493246,3055.9,3055.8,0.4274]
[1765045114405,0.002,3056.0,3055.8,0.4274]
[1765045114610,0.002,3056.0,3055.9,3.27235838]
[1765045115813,0.002,3056.0,3055.9,9.96799824]
[1765045115972,0.002,3056.0,3055.9,11.29204526]
[1765045116483,0.002,3056.0,3055.9,10.86464526]
[1765045116671,0.4721,3056.0,3055.9,4.5964054]
[1765045116871,0.9268,3056.0,3055.9,4.5964054]
[1765045117175,0.002,3056.0,3055.9,4.5964054]
[1765045118612,0.002,3056.0,3055.9,21.32495626]
[1765045119806,0.002,3056.0,3055.9,14.00607326]
[1765045120017,0.002,3056.0,3055.9,10.86464526]
[1765045120427,0.9268,3056.0,3055.9,3.27235838]
[1765045120890,0.4721,3056.0,3055.8,3.27246547]
[1765045121485,0.9268,3056.0,3055.8,3.27246547]
[1765045121797,0.4309,3055.9,3055.8,3.27246547]
[1765045122001,0.8856,3055.9,3055.8,3.27246547]
[1765045122181,0.8856,3055.9,3055.8,5.10294935]
[1765045123112,0.4309,3055.9,3055.8,5.10294935]
[1765045123308,0.002,3056.0,3055.8,5.53034935]
[1765045123524,0.002,3056.0,3055.9,21.38280686]
[1765045123881,0.002,3056.0,3055.9,19.44673686]
[1765045125013,0.002,3056.0,3055.9,22.71909524]
[1765045126214,0.002,3056.0,3055.9,25.5012997]
[1765045126417,0.002,3056.0,3055.9,23.7523337]
[1765045126723,0.4721,3056.0,3055.9,3.27235838]
[1765045126895,0.9268,3056.0,3055.3,3.403946]
[1765045127094,0.65493246,3055.7,3055.5,3.27276738]
[1765045127417,0.65493246,3055.7,3055.1,3.2731293]
[1765045127721,0.65493246,3055.7,3054.8,0.65693246]
[1765045127722,0.65493246,3055.2,3054.9,0.516]
[1765045128021,0.65493246,3055.2,3054.8,6.26823986]
[1765045128184,0.65493246,3055.0,3054.9,3.27337833]
[1765045128590,1.12503246,3055.0,3054.9,3.27337833]
[1765045128983,0.65493246,3055.4,3054.9,6.9742079]
[1765045129190,0.65493246,3055.7,3055.3,0.4274]
[1765045129389,0.65493246,3055.5,3055.3,0.4274]
[1765045129619,0.4701,3055.4,3055.1,6.26823986]
[1765045130024,0.9248,3055.4,3055.1,6.26823986]
[1765045130221,0.9248,3055.4,3055.0,1.84024478]
[1765045130222,0.4244,3055.2,3055.0,0.516]
[1765045130520,0.4376,3055.1,3055.0,0.516]
[1765045131193,0.4376,3055.1,3055.0,10.05756228]
[1765045131921,0.4376,3055.1,3055.0,3.78932242]
[1765045132504,0.4871,3055.3,3055.0,7.06264484]
[1765045133817,0.65493246,3055.5,3055.0,13.3308847]
[1765045133992,0.4596,3055.4,3055.0,13.3308847]
[1765045135323,0.65493246,3055.5,3055.0,13.3308847]
[1765045135521,0.65493246,3055.5,3055.0,13.7582847]
[1765045135821,1.11453246,3055.5,3055.0,13.7582847]
[1765045136022,1.11453246,3055.5,3055.0,13.3308847]
[1765045136406,0.4596,3055.4,3055.0,13.3308847]
[1765045136622,0.65493246,3055.3,3055.0,13.3308847]
[1765045137014,1.11453246,3055.3,3055.0,13.3308847]
[1765045138830,0.65493246,3055.3,3055.0,13.3308847]
[1765045139409,1.11453246,3055.3,3055.0,13.3308847]
[1765045139606,0.4793,3055.1,3055.0,3.78932242]
[1765045140501,0.65493246,3055.3,3055.0,3.78932242]
[1765045140829,1.11453246,3055.3,3055.0,13.3308847]
[1765045141402,0.4596,3055.2,3055.0,13.3308847]
[1765045141701,0.4793,3055.1,3055.0,10.05756228]
[1765045141901,0.4793,3055.1,3055.0,3.78932242]
[1765045142111,0.9389,3055.1,3055.0,3.27332242]
[1765045142495,0.9389,3055.1,3054.8,6.54696995]
[1765045142709,0.4103,3054.9,3054.8,3.27343323]
[1765045143129,0.65493246,3055.0,3054.8,3.27343323]
[1765045144703,0.9389,3054.9,3054.8,3.27343323]
[1765045147157,0.4793,3054.9,3054.8,3.27343323]
[1765045147323,1.1342,3054.9,3054.8,3.27343323]
[1765045149122,1.31311325,3054.9,3054.7,3.27363132]
[1765045149321,1.11413246,3054.8,3054.5,3.27385383]
[1765045149554,0.65493246,3054.6,3054.5,3.27385383]
[1765045149753,1.13423246,3054.6,3054.5,3.27385383]
[1765045150049,0.9389,3054.6,3054.5,3.27385383]
[1765045150226,0.4793,3054.6,3054.5,3.27385383]
[1765045150955,1.11453246,3054.8,3054.5,13.24335193]
[1765045151173,0.11065603,3312.5,3054.5,13.24335193]
[1765045151174,0.65493246,3055.5,3054.7,6.69563986]
[1765045151360,0.65493246,3055.1,3054.9,6.26823986]
[1765045152132,0.65493246,3055.1,3054.8,6.54707344]
[1765045153644,0.65493246,3055.1,3054.8,7.06307344]
[1765045157476,0.4596,3055.2,3054.8,7.06307344]
[1765045158560,0.4596,3055.2,3054.8,8.52011227]
[1765045158867,0.65493246,3055.1,3054.8,8.52011227]
[1765045159255,0.4596,3055.0,3054.8,7.06307344]
[1765045160669,0.65493246,3055.1,3054.8,7.06307344]
[1765045160872,1.12633246,3055.1,3054.8,7.06307344]
[1765045162454,0.4714,3055.0,3054.8,7.06307344]
[1765045163877,0.4764,3054.9,3054.8,3.78953672]
[1765045164951,0.4714,3055.0,3054.8,3.78953672]
[1765045165152,0.65493246,3055.1,3054.8,7.06307344]
[1765045165352,1.12633246,3055.1,3054.8,7.06307344]
[1765045169093,0.4714,3055.0,3054.8,7.06307344]
[1765045169597,1.32583246,3054.9,3054.2,0.001]
[1765045169801,1.13133246,3054.3,3054.2,0.001]
[1765045170203,1.60273246,3054.3,3054.2,0.001]
[1765045180812,1.6355647,3054.3,3054.2,0.001]
[1765045187780,4.90963731,3054.3,3054.2,0.001]
[1765045187950,11.27812025,3054.3,3054.2,0.001]
[1765045188279,13.14498572,3054.3,3054.2,0.001]
[1765045189247,13.87057983,3054.3,3054.2,0.001]
[1765045191278,14.00168245,3054.3,3054.2,0.001]
[1765045208848,6.65429689,3054.3,3054.2,0.4284]
[1765045209055,7.17029689,3054.3,3054.2,0.4284]
[1765045209263,7.17029689,3054.3,3054.2,0.001]
[1765045209444,7.62959689,3054.3,3054.2,0.001]
[1765045210374,5.27059918,3054.3,3054.2,0.001]
[1765045211230,4.75459918,3054.3,3054.2,0.001]
[1765045211462,5.27059918,3054.3,3054.2,0.001]
[1765045211757,1.99652657,3054.3,3054.2,0.001]
[1765045212862,5.27059918,3054.3,3054.2,0.001]
[1765045213361,5.27059918,3054.3,3054.2,0.4284]
[1765045213869,7.82367045,3054.3,3054.2,0.001]
[1765045214073,7.79083821,3054.3,3054.2,0.001]
[1765045214961,11.23783821,3054.3,3054.2,0.001]
[1765045215171,11.36895458,3054.3,3054.2,0.001]
[1765045216066,18.20445858,3054.3,3054.2,0.001]
[1765045216468,14.35195458,3054.3,3054.2,0.001]
[1765045222356,20.62816171,3054.3,3054.2,0.001]
[1765045226164,20.11216171,3054.3,3054.2,0.001]
[1765045226367,20.62816171,3054.3,3054.2,0.001]
[1765045228082,20.11216171,3054.3,3054.2,0.001]
[1765045228247,20.62816171,3054.3,3054.2,0.001]
[1765045246712,21.03366571,3054.3,3054.2,0.001]
[1765045247009,24.48066571,3054.3,3054.2,0.001]
[1765045251324,10.95430524,3054.1,3054.0,0.001]
[1765045251550,3.952504,3053.8,3053.6,0.001]
[1765045251751,10.22871113,3053.6,3053.3,0.001]
[1765045251901,11.43400524,3053.6,3053.3,0.001]
[1765045252107,13.65355074,3053.6,3053.3,0.001]
[1765045252605,24.01330635,3053.6,3053.3,0.001]
[1765045252803,5.59263035,3053.5,3053.3,0.001]
[1765045255456,9.38456075,3053.5,3053.3,0.001]
[1765045255628,9.35172851,3053.5,3053.3,0.001]
[1765045255828,11.12796141,3053.5,3053.3,0.001]
[1765045256338,7.68096141,3053.5,3053.3,0.001]
[1765045256514,14.11096141,3053.5,3053.3,0.001]
[1765045256913,18.58296454,3053.5,3053.4,0.4284]
[1765045257141,17.32373164,3053.5,3053.4,0.8558]
[1765045258442,17.32373164,3053.5,3053.4,0.4284]
[1765045260329,17.89593164,3053.5,3053.4,0.4284]
[1765045260651,4.67272451,3053.5,3053.4,0.8558]
[1765045260852,5.18972451,3053.5,3053.4,0.8558]
[1765045261046,4.61752451,3053.5,3053.4,0.8558]
[1765045261551,4.61752451,3053.5,3053.4,0.001]
[1765045261552,12.95399261,3053.5,3053.4,0.001]
[1765045261753,12.92116037,3053.5,3053.4,0.001]
[1765045261923,14.67836437,3053.5,3053.4,0.001]
[1765045262438,24.55536437,3053.5,3053.4,0.001]
[1765045273861,23.08296437,3053.5,3053.4,0.4284]
[1765045274061,23.59996437,3053.5,3053.4,0.4284]
[1765045274444,4.67809811,3053.4,3053.3,0.001]
[1765045274645,13.72728024,3053.4,3053.3,0.001]
[1765045275163,13.87208024,3053.4,3053.3,0.001]
[1765045276161,0.82559411,3053.3,3053.2,0.04854]
[1765045276364,0.85842635,3053.3,3053.2,0.04854]
[1765045276874,0.95673541,3053.3,3053.2,0.04854]
[1765045277965,4.23188033,3053.3,3053.2,0.04854]
[1765045278667,1.24259411,3053.3,3053.2,0.04854]
[1765045283469,1.34259411,3053.3,3053.2,0.04854]
[1765045288445,0.517,3053.3,3053.2,0.04854]
[1765045289980,0.617,3053.3,3053.2,0.04854]
[1765045290881,7.60193246,3053.4,3053.2,0.04854]
[1765045295186,1.17193246,3053.4,3053.2,0.04854]
[1765045296788,0.65493246,3053.3,3053.2,3.65625523]
[1765045300979,0.65493246,3053.3,3053.2,0.38103644]
[1765045301179,0.65493246,3053.3,3053.2,0.04854]
[1765045301692,0.65493246,3053.3,3053.2,3.32379219]
[1765045306271,0.1,3053.2,3053.1,0.001]
[1765045306596,1.79632635,3053.2,3053.1,0.001]
[1765045306797,4.47759371,3053.2,3053.1,0.001]
[1765045307009,4.47759371,3053.2,3052.9,0.001]
[1765045307298,7.58834891,3053.0,3052.9,0.001]
[1765045307693,8.04094891,3053.0,3052.9,0.001]
[1765045307880,1.76349411,3053.0,3052.9,0.001]
[1765045308065,5.48343782,3053.0,3052.9,0.001]
[1765045308266,6.00043782,3053.0,3052.9,0.001]
[1765045308466,5.54783782,3053.0,3052.9,0.001]
[1765045308685,5.67899159,3053.0,3052.9,0.001]
[1765045309000,6.13159159,3053.0,3052.9,0.001]
[1765045309768,6.16442383,3053.0,3052.9,0.001]
[1765045310902,6.03327006,3053.0,3052.9,0.001]
[1765045313303,6.00043782,3053.0,3052.9,0.001]
[1765045317722,12.31072486,3053.0,3052.9,0.001]
[1765045318018,12.40905628,3053.0,3052.9,0.001]
[1765045321806,5.16200148,3053.0,3052.9,0.001]
[1765045322001,5.54783782,3053.0,3052.9,0.001]
[1765045322494,5.06253782,3053.0,3052.9,0.001]
[1765045322696,4.54553782,3053.0,3052.9,0.001]
[1765045323023,1.34259411,3053.0,3052.9,0.001]
[1765045324024,4.61806086,3053.0,3052.9,0.001]
[1765045324423,1.34259411,3053.0,3052.9,0.001]
[1765045325527,4.61806086,3053.0,3052.9,0.001]
[1765045327129,1.34259411,3053.0,3052.9,0.001]
[1765045327931,4.61806086,3053.0,3052.9,0.001]
[1765045328729,1.34259411,3053.0,3052.9,0.001]
[1765045330122,4.61806086,3053.0,3052.9,0.001]
[1765045334334,5.60012524,3053.0,3052.9,0.001]
[1765045347027,0.72559411,3053.0,3052.9,0.001]
[1765045348753,4.00106086,3053.0,3052.9,0.001]
[1765045348947,4.10106086,3053.0,3052.9,0.001]
[1765045354784,5.0808931,3053.0,3052.9,0.001]
[1765045356883,0.72559411,3053.0,3052.9,0.001]
[1765045357452,4.00106086,3053.0,3052.9,0.001]
[1765045363388,4.10106086,3053.0,3052.9,0.001]
[1765045365099,0.72559411,3053.0,3052.9,0.001]
[1765045365406,1.17193246,3053.1,3052.9,0.001]
[1765045376420,0.476,3053.0,3052.9,0.001]
[1765045376714,0.9376,3053.0,3052.9,0.001]
[1765045377418,4.34589899,3053.0,3052.9,0.001]
[1765045379021,1.07043224,3053.0,3052.9,0.001]
[1765045380319,1.17193246,3053.1,3052.9,0.001]
[1765045380624,0.65493246,3053.0,3052.9,0.001]
[1765045384531,1.70223246,3053.0,3052.9,0.001]
[1765045393534,1.7350647,3053.0,3052.9,0.001]
[1765045394207,5.56327396,3053.0,3052.9,0.001]
[1765045395604,0.75493246,3053.0,3052.9,0.001]
[1765045395940,0.65493246,3053.1,3052.9,0.001]
[1765045401148,0.4612,3053.0,3052.9,0.001]
[1765045401317,7.35831226,3053.0,3052.9,0.001]
[1765045401646,7.32548002,3053.0,3052.9,0.001]
[1765045402015,8.83029508,3053.0,3052.9,0.001]
[1765045403250,12.10576183,3053.0,3052.9,0.001]
[1765045405145,5.82668181,3053.0,3052.9,0.001]
[1765045408156,5.85951405,3053.0,3052.9,0.001]
[1765045411857,4.16147722,3053.1,3052.9,0.001]
[1765045412557,0.4612,3053.0,3052.9,0.001]
[1765045412759,1.77199411,3053.0,3052.9,0.001]
[1765045412921,1.80482635,3053.0,3052.9,0.001]
[1765045413255,1.93598399,3053.0,3052.9,0.001]
[1765045413424,3.85736995,3053.0,3052.9,0.001]
[1765045413620,0.1,3052.9,3052.8,0.001]
[1765045413847,1.89853246,3052.9,3052.8,0.001]
[1765045414232,2.75529023,3052.9,3052.8,0.001]
[1765045414437,6.03086427,3052.9,3052.8,0.001]
[1765045414760,7.64165671,3052.9,3052.8,0.001]
[1765045416029,8.04716071,3052.9,3052.8,0.001]
[1765045419974,14.47716071,3052.9,3052.8,0.001]
[1765045428459,0.1,3052.2,3052.1,0.001]
[1765045428661,14.51372303,3052.2,3052.1,0.001]
[1765045428972,16.45029533,3052.2,3052.1,0.001]
[1765045429169,16.5815003,3052.2,3052.1,0.001]
[1765045430472,19.85782557,3052.2,3052.1,0.001]
[1765045438676,12.11449665,3052.2,3052.1,0.001]
[1765045438881,11.18012435,3052.2,3052.1,0.001]
[1765045440902,12.14882435,3052.2,3052.1,0.001]
[1765045441502,17.94445327,3052.2,3052.1,0.001]
[1765045441795,18.42875327,3052.2,3052.1,0.001]
[1765045447005,17.46005327,3052.2,3052.1,0.001]
[1765045447607,13.10151031,3052.2,3052.1,0.001]
[1765045448202,13.58591031,3052.2,3052.1,0.001]
[1765045448787,14.72514277,3052.2,3052.1,0.001]
[1765045460220,14.24084277,3052.2,3052.1,0.001]
[1765045460418,13.75644277,3052.2,3052.1,0.001]
[1765045460717,14.67134277,3052.2,3052.1,0.001]
[1765045461499,14.21744277,3052.2,3052.1,0.001]
[1765045463600,13.23944277,3052.2,3052.1,0.001]
[1765045463805,11.83505681,3052.2,3052.1,0.001]
[1765045466428,12.29605681,3052.2,3052.1,0.001]
[1765045466596,12.74995681,3052.2,3052.1,0.001]
[1765045467827,12.29605681,3052.2,3052.1,0.001]
[1765045468132,11.83505681,3052.2,3052.1,0.001]
[1765045468429,20.32390343,3052.2,3052.1,0.001]
[1765045473040,20.78490343,3052.2,3052.1,0.001]
[1765045473537,21.23880343,3052.2,3052.1,0.001]
[1765045478441,20.32390343,3052.2,3052.1,0.001]
[1765045484536,20.78490343,3052.2,3052.1,0.001]
[1765045484849,21.23880343,3052.2,3052.1,0.001]
[1765045489749,20.32390343,3052.2,3052.1,0.001]
[1765045490959,19.80690343,3052.2,3052.1,0.001]